fUST/lending_fUST_20250630
["ID","MTS","AMOUNT","RATE_DAILY","PERIOD"]
[368636212,1751256642179,-500.0,0.00018986,2]
[368636213,1751256642189,-500.0,0.00018986,2]
[368636214,1751256642198,-500.0,0.00018986,2]
[368636215,1751256642208,-500.0,0.00018986,2]
[368636216,1751256642217,-500.0,0.00018986,2]
[368636217,1751256642226,-431.69007642,0.00018986,2]
[368636218,1751256642236,-247.22408996,0.00018986,2]
[368636219,1751256642245,-500.0,0.00018986,2]
[368636220,1751256642255,-502.06382381,0.00018986,2]
[368636221,1751256642264,-500.0,0.00018986,2]
[368636222,1751256642273,-500.0,0.00018996,2]
[368636223,1751256642282,-500.0,0.00018996,2]
[368636224,1751256642291,-345.21844653,0.00018996,2]
[368636225,1751256642301,-500.62860651,0.00018996,2]
[368636226,1751256642310,-500.0,0.00018996,2]
[368636227,1751256642322,-500.0,0.00018996,2]
[368636228,1751256642331,-500.0,0.00018996,2]
[368636229,1751256642341,-500.36121719,0.00018996,2]
[368636230,1751256642350,-201.29531528,0.00018996,2]
[368636231,1751256642359,-303.00000303,0.00019,2]
[368636232,1751256642368,-460.0,0.00019053,2]
[368636233,1751256642377,-460.0,0.00019053,2]
[368636234,1751256642386,-1252.4,0.00019053,2]
[368636235,1751256642395,-460.0,0.00019055,2]
[368636236,1751256642404,-996.8,0.00019055,2]
[368636237,1751256642414,-1026.17,0.00019055,2]
[368636238,1751256642423,-415.61,0.00019055,2]
[368636239,1751256642433,-234.58,0.00019055,2]
[368636240,1751256642442,-460.0,0.00019055,2]
[368636241,1751256642451,-460.0,0.00019055,2]
[368636242,1751256642461,-1226.43,0.00019055,2]
[368636243,1751256642470,-460.0,0.00019055,2]
[368636244,1751256642480,-460.0,0.00019055,2]
[368636245,1751256642489,-1807.28,0.00019055,2]
[368636246,1751256642499,-548.33,0.00019055,2]
[368636247,1751256642507,-1585.86,0.00019055,2]
[368636248,1751256642517,-460.0,0.00019055,2]
[368636249,1751256642526,-17210.01,0.00019055,2]
[368636250,1751256642536,-460.0,0.00019055,2]
[368636251,1751256642545,-460.0,0.00019055,2]
[368636252,1751256642554,-1055.05,0.00019055,2]
[368636253,1751256642563,-460.0,0.00019055,2]
[368636254,1751256642573,-460.0,0.00019055,2]
[368636255,1751256642582,-460.0,0.00019055,2]
[368636256,1751256642592,-460.0,0.00019055,2]
[368636257,1751256642601,-770.74,0.00019055,2]
[368636258,1751256642611,-473.01,0.00019055,2]
[368636259,1751256642620,-460.0,0.00019055,2]
[368636260,1751256642629,-468.32,0.00019055,2]
[368636261,1751256642638,-1066.11,0.00019055,2]
[368636262,1751256642647,-460.0,0.00019055,2]
[368636264,1751256642657,-460.0,0.00019055,2]
[368636265,1751256642667,-460.0,0.00019055,2]
[368636266,1751256642677,-460.0,0.00019055,2]
[368636267,1751256642687,-250.18,0.00019056,2]
[368636268,1751256642696,-460.0,0.00019056,2]
[368636269,1751256642705,-460.0,0.00019056,2]
[368636270,1751256642715,-460.0,0.00019056,2]
[368636271,1751256642724,-721.17,0.00019056,2]
[368636272,1751256642734,-460.0,0.00019056,2]
[368636273,1751256642744,-978.43,0.00019056,2]
[368636274,1751256642754,-534.26,0.00019056,2]
[368636275,1751256642763,-460.0,0.00019056,2]
[368636276,1751256642772,-460.0,0.00019056,2]
[368636278,1751256642783,-460.0,0.00019056,2]
[368636279,1751256642792,-460.0,0.00019056,2]
[368636280,1751256642801,-678.08,0.00019056,2]
[368636281,1751256642811,-1418.0,0.00019056,2]
[368636282,1751256642820,-460.0,0.00019056,2]
[368636283,1751256642830,-460.0,0.00019056,2]
[368636284,1751256642839,-832.05,0.00019056,2]
[368636285,1751256642848,-3065.61,0.00019056,2]
[368636286,1751256642858,-460.0,0.00019056,2]
[368636287,1751256642867,-1187.81,0.00019056,2]
[368636288,1751256642876,-915.3,0.00019056,2]
[368636289,1751256642886,-2530.53,0.00019057,2]
[368636290,1751256642896,-571.54,0.00019057,2]
[368636291,1751256642905,-460.0,0.00019058,2]
[368636292,1751256642914,-4104.45848769,0.00019072,2]
[368636293,1751256642925,-500.0,0.00019082,2]
[368636294,1751256642935,-500.0,0.00019164,2]
[368636295,1751256642944,-500.0,0.00019178,2]
[368636296,1751256642957,-234.47094767,0.00019178,2]
[368636297,1751256642966,-323.498108,0.00019178,2]
[368636299,1751256642976,-4104.45848769,0.00019245,2]
[368636301,1751256642985,-500.0,0.00019283,2]
[368636302,1751256642995,-151.0,0.00019288,2]
[368636303,1751256643006,-151.0,0.00019288,2]
[368636304,1751256643015,-151.0,0.00019288,2]
[368636305,1751256643024,-500.0,0.00019288,2]
[368636306,1751256643037,-151.0,0.00019288,2]
[368636307,1751256643047,-151.0,0.00019288,2]
[368636308,1751256643057,-500.0,0.00019288,2]
[368636309,1751256643067,-500.0,0.00019288,2]
[368636310,1751256643077,-500.0,0.00019288,2]
[368636311,1751256643087,-151.0,0.00019288,2]
[368636312,1751256643096,-151.0,0.00019288,2]
[368636313,1751256643106,-151.0,0.00019288,2]
[368636314,1751256643115,-151.0,0.00019315,2]
[368636315,1751256643125,-501.02964082,0.00019315,2]
[368636316,1751256643135,-151.0,0.00019315,2]
[368636317,1751256643144,-151.0,0.00019315,2]
[368636318,1751256643153,-500.0,0.00019315,2]
[368636319,1751256643163,-500.0,0.00019315,2]
[368636320,1751256643173,-500.0,0.00019315,2]
[368636321,1751256643183,-151.0,0.00019315,2]
[368636322,1751256643192,-151.25535634,0.00019315,2]
[368636323,1751256643201,-151.0,0.00019315,2]
[368636324,1751256643213,-460.0,0.00019327,2]
[368636325,1751256643222,-460.0,0.00019327,2]
[368636326,1751256643231,-1252.4,0.00019327,2]
[368636327,1751256643241,-460.0,0.00019329,2]
[368636328,1751256643250,-996.8,0.00019329,2]
[368636329,1751256643260,-1026.17,0.00019329,2]
[368636330,1751256643269,-460.0,0.00019329,2]
[368636331,1751256643279,-457.06048945,0.00019329,2]
[368636332,1751256643288,-1226.43,0.00019329,2]
[368636333,1751256643297,-460.0,0.00019329,2]
[368636334,1751256643307,-1807.28,0.00019329,2]
[368636335,1751256643316,-548.33,0.00019329,2]
[368636336,1751256643326,-1585.86,0.00019329,2]
[368636337,1751256643335,-460.0,0.00019329,2]
[368636339,1751256643345,-17210.01,0.00019329,2]
[368636341,1751256643355,-460.0,0.00019329,2]
[368636343,1751256643364,-460.0,0.00019329,2]
[368636345,1751256643373,-1055.05,0.00019329,2]
[368636347,1751256643383,-460.0,0.00019329,2]
[368636349,1751256643392,-460.0,0.00019329,2]
[368636351,1751256643401,-460.0,0.00019329,2]
[368636353,1751256643410,-460.0,0.00019329,2]
[368636355,1751256643419,-770.74,0.00019329,2]
[368636357,1751256643428,-460.0,0.00019329,2]
[368636359,1751256643437,-468.32,0.00019329,2]
[368636361,1751256643447,-1066.11,0.00019329,2]
[368636363,1751256643455,-460.0,0.00019329,2]
[368636365,1751256643465,-460.0,0.00019329,2]
[368636367,1751256643474,-460.0,0.00019329,2]
[368636369,1751256643483,-100000.0,0.00019329,2]
[368636370,1751256643491,-585.39063994,0.0001933,2]
[368636371,1751256643501,-460.0,0.0001933,2]
[368636372,1751256643510,-460.0,0.0001933,2]
[368636373,1751256643519,-721.17,0.0001933,2]
[368636374,1751256643529,-261.43746702,0.0001933,2]
[368636375,1751256643539,-978.43,0.0001933,2]
[368636376,1751256643548,-534.26,0.0001933,2]
[368636377,1751256643560,-460.0,0.0001933,2]
[368636378,1751256643569,-460.0,0.0001933,2]
[368636379,1751256643578,-460.0,0.0001933,2]
[368636380,1751256643587,-460.0,0.0001933,2]
[368636381,1751256643596,-678.08,0.0001933,2]
[368636382,1751256643605,-1418.0,0.0001933,2]
[368636383,1751256643614,-460.0,0.0001933,2]
[368636384,1751256643623,-460.0,0.0001933,2]
[368636385,1751256643633,-832.05,0.0001933,2]
[368636386,1751256643643,-3065.61,0.0001933,2]
[368636387,1751256643652,-460.0,0.0001933,2]
[368636388,1751256643661,-1187.81,0.0001933,2]
[368636389,1751256643671,-915.3,0.0001933,2]
[368636390,1751256643680,-2530.53,0.00019331,2]
[368636391,1751256643689,-571.54,0.00019331,2]
[368636392,1751256643698,-460.0,0.00019332,2]
[368636393,1751256643707,-151.0,0.00019343,2]
[368636394,1751256643716,-151.0,0.00019343,2]
[368636395,1751256643726,-151.0,0.00019343,2]
[368636396,1751256643735,-500.0,0.00019343,2]
[368636397,1751256643744,-500.0,0.00019343,2]
[368636398,1751256643754,-501.40025612,0.00019343,2]
[368636399,1751256643763,-199.24330367,0.00019343,2]
[368636400,1751256643772,-165.18911145,0.00019343,2]
[368636401,1751256643781,-207.4,0.00019348,2]
[368636402,1751256643791,-690.642,0.00019348,2]
[368636403,1751256643800,-8906.75071779,0.00019348,2]
[368636404,1751256643809,-259.85587811,0.00019367,2]
[368636405,1751256643819,-1500.0,0.00019368,2]
[368636406,1751256643828,-158.88238876,0.0001937,2]
[368636407,1751256643837,-246.57214437,0.0001937,2]
[368636408,1751256643846,-151.0,0.0001937,2]
[368636409,1751256643856,-500.0,0.0001937,2]
[368636410,1751256643865,-500.0,0.0001937,2]
[368636411,1751256643875,-247.28135288,0.00019398,2]
[368636412,1751256643884,-254.19260239,0.00019398,2]
[368636413,1751256643893,-333.78386054,0.00019398,2]
[368636414,1751256643902,-716.195754,0.00019403,2]
[368636415,1751256643911,-500.32182282,0.00019407,2]
[368636416,1751256643921,-500.0,0.00019407,2]
[368636417,1751256643930,-500.0,0.00019407,2]
[368636418,1751256643939,-500.90077759,0.00019407,2]
[368636419,1751256643949,-570.9676424,0.00019407,2]
[368636420,1751256643960,-500.0,0.00019407,2]
[368636421,1751256643970,-1000.0,0.00019407,2]
[368636422,1751256643979,-4104.45848769,0.00019417,2]
[368636423,1751256643989,-742.6949969,0.00019458,2]
[368636424,1751256643999,-770.17471178,0.00019513,2]
[368636425,1751256644008,-500.84220279,0.00019534,2]
[368636426,1751256644017,-500.0,0.00019534,2]
[368636427,1751256644027,-1000.0,0.00019534,2]
[368636428,1751256644039,-501.08720691,0.00019534,2]
[368636429,1751256644048,-1000.0,0.00019534,2]
[368636430,1751256644057,-1000.0,0.00019534,2]
[368636431,1751256644067,-501.12856268,0.00019534,2]
[368636432,1751256644076,-501.0369887,0.00019534,2]
[368636433,1751256644085,-502.40315064,0.00019544,2]
[368636434,1751256644094,-501.22139317,0.00019544,2]
[368636435,1751256644103,-503.69993449,0.00019544,2]
[368636436,1751256644113,-404.50783091,0.00019568,2]
[368636437,1751256644122,-4104.45848769,0.0001959,2]
[368636438,1751256644131,-623.74,0.00019592,3]
[368636439,1751256644140,-311.86,0.00019592,3]
[368636440,1751256644149,-571.52,0.00019592,3]
[368636441,1751256644158,-460.0,0.00019601,2]
[368636442,1751256644168,-460.0,0.00019601,2]
[368636443,1751256644177,-1252.4,0.00019601,2]
[368636444,1751256644186,-72026.73654694,0.00019603,2]
[368636445,1751256644195,-122812.62957746,0.00019603,2]
[368636446,1751256644204,-460.0,0.00019603,2]
[368636447,1751256644214,-996.8,0.00019603,2]
[368636448,1751256644224,-1026.17,0.00019603,2]
[368636449,1751256644233,-460.0,0.00019603,2]
[368636450,1751256644243,-1226.43,0.00019603,2]
[368636451,1751256644252,-460.0,0.00019603,2]
[368636452,1751256644262,-1807.28,0.00019603,2]
[368636453,1751256644271,-548.33,0.00019603,2]
[368636454,1751256644281,-1585.86,0.00019603,2]
[368636455,1751256644290,-460.0,0.00019603,2]
[368636456,1751256644299,-17210.01,0.00019603,2]
[368636457,1751256644309,-460.0,0.00019603,2]
[368636458,1751256644319,-460.0,0.00019603,2]
[368636459,1751256644328,-1055.05,0.00019603,2]
[368636460,1751256644337,-460.0,0.00019603,2]
[368636461,1751256644346,-460.0,0.00019603,2]
[368636462,1751256644356,-460.0,0.00019603,2]
[368636463,1751256644365,-570.8256276,0.00019603,2]
[368636464,1751256644374,-770.74,0.00019603,2]
[368636465,1751256644383,-468.32,0.00019603,2]
[368636466,1751256644393,-1066.11,0.00019603,2]
[368636467,1751256644402,-508.22,0.00019603,2]
[368636468,1751256644411,-587.54,0.00019603,2]
[368636469,1751256644421,-460.0,0.00019603,2]
[368636470,1751256644430,-460.0,0.00019604,2]
[368636471,1751256644439,-460.0,0.00019604,2]
[368636472,1751256644448,-721.17,0.00019604,2]
[368636473,1751256644456,-978.43,0.00019604,2]
[368636474,1751256644465,-534.26,0.00019604,2]
[368636475,1751256644474,-460.0,0.00019604,2]
[368636476,1751256644483,-460.0,0.00019604,2]
[368636477,1751256644492,-460.0,0.00019604,2]
[368636478,1751256644501,-460.0,0.00019604,2]
[368636479,1751256644510,-678.08,0.00019604,2]
[368636480,1751256644519,-1418.0,0.00019604,2]
[368636481,1751256644528,-460.0,0.00019604,2]
[368636482,1751256644538,-460.0,0.00019604,2]
[368636483,1751256644547,-832.05,0.00019604,2]
[368636484,1751256644556,-3065.61,0.00019604,2]
[368636485,1751256644566,-460.0,0.00019604,2]
[368636486,1751256644574,-1187.81,0.00019604,2]
[368636487,1751256644584,-915.3,0.00019604,2]
[368636488,1751256644592,-2530.53,0.00019605,2]
[368636489,1751256644602,-571.54,0.00019605,2]
[368636490,1751256644611,-460.0,0.00019606,2]
[368636491,1751256644620,-500.0,0.0001963,2]
[368636492,1751256644629,-176.00966665,0.00019655,2]
[368636493,1751256644639,-4104.45848769,0.00019762,2]
[368636494,1751256644648,-259.85587811,0.00019779,2]
[368636495,1751256644657,-246.0,0.00019795,2]
[368636496,1751256644667,-537.20374534,0.00019831,2]
[368636497,1751256644676,-460.0,0.00019875,2]
[368636498,1751256644686,-380.89909533,0.00019875,2]
[368636499,1751256644695,-1252.4,0.00019875,2]
[368636500,1751256644705,-460.0,0.00019877,2]
[368636501,1751256644714,-996.8,0.00019877,2]
[368636502,1751256644724,-1026.17,0.00019877,2]
[368636503,1751256644733,-460.0,0.00019877,2]
[368636504,1751256644742,-1226.43,0.00019877,2]
[368636505,1751256644751,-460.0,0.00019877,2]
[368636506,1751256644761,-1807.28,0.00019877,2]
[368636507,1751256644770,-548.33,0.00019877,2]
[368636508,1751256644780,-1585.86,0.00019877,2]
[368636509,1751256644789,-460.0,0.00019877,2]
[368636510,1751256644798,-17210.01,0.00019877,2]
[368636511,1751256644809,-460.0,0.00019877,2]
[368636512,1751256644818,-460.0,0.00019877,2]
[368636513,1751256644827,-1055.05,0.00019877,2]
[368636514,1751256644836,-460.0,0.00019877,2]
[368636515,1751256644845,-460.0,0.00019877,2]
[368636516,1751256644854,-460.0,0.00019877,2]
[368636517,1751256644863,-770.74,0.00019877,2]
[368636518,1751256644872,-420.0,0.00019877,2]
[368636519,1751256644881,-468.32,0.00019877,2]
[368636520,1751256644890,-1066.11,0.00019877,2]
[368636521,1751256644900,-460.0,0.00019877,2]
[368636522,1751256644909,-460.0,0.00019878,2]
[368636523,1751256644918,-460.0,0.00019878,2]
[368636524,1751256644927,-721.17,0.00019878,2]
[368636525,1751256644936,-978.43,0.00019878,2]
[368636526,1751256644945,-534.26,0.00019878,2]
[368636527,1751256644956,-460.0,0.00019878,2]
[368636528,1751256644970,-460.0,0.00019878,2]
[368636529,1751256644978,-460.0,0.00019878,2]
[368636530,1751256644988,-460.0,0.00019878,2]
[368636531,1751256644998,-678.08,0.00019878,2]
[368636532,1751256645009,-1418.0,0.00019878,2]
[368636533,1751256645017,-460.0,0.00019878,2]
[368636534,1751256645027,-460.0,0.00019878,2]
[368636535,1751256645037,-832.05,0.00019878,2]
[368636536,1751256645047,-3065.61,0.00019878,2]
[368636537,1751256645056,-319.57573034,0.00019878,2]
[368636538,1751256645066,-1187.81,0.00019878,2]
[368636539,1751256645075,-915.3,0.00019878,2]
[368636540,1751256645085,-2530.53,0.00019879,2]
[368636541,1751256645094,-571.54,0.00019879,2]
[368636542,1751256645103,-460.0,0.0001988,2]
[368636543,1751256645112,-168.0,0.00019888,2]
[368636544,1751256645121,-4104.45848769,0.00019934,2]
[368636545,1751256645131,-993.84431527,0.00019955,2]
[368636546,1751256645140,-1680.0,0.00019974,2]
[368636547,1751256645149,-300.0,0.0002,2]
[368636548,1751256645158,-5052.58812997,0.0002,2]
[368636549,1751256645168,-160.0,0.00020009,3]
[368636550,1751256645177,-246.0,0.00020016,2]
[368636551,1751256645186,-1001.04793815,0.00020082,2]
[368636552,1751256645195,-1500.0,0.00020082,2]
[368636553,1751256645204,-809.78369465,0.00020082,2]
[368636554,1751256645213,-150.0,0.00020096,2]
[368636555,1751256645222,-150.0,0.00020096,2]
[368636556,1751256645231,-966.0,0.00020096,2]
[368636557,1751256645240,-646.0,0.00020096,2]
[368636558,1751256645249,-2151.0,0.00020096,2]
[368636559,1751256645259,-406.0,0.00020096,2]
[368636560,1751256645267,-4104.45848769,0.00020107,2]
[368636561,1751256645276,-567.12,0.00020143,3]
[368636562,1751256645285,-567.12,0.00020143,3]
[368636563,1751256645294,-460.0,0.00020149,2]
[368636564,1751256645303,-1252.4,0.00020149,2]
[368636565,1751256645311,-460.0,0.00020151,2]
[368636566,1751256645321,-996.8,0.00020151,2]
[368636567,1751256645331,-1026.17,0.00020151,2]
[368636568,1751256645339,-460.0,0.00020151,2]
[368636569,1751256645348,-1226.43,0.00020151,2]
[368636570,1751256645358,-460.0,0.00020151,2]
[368636571,1751256645367,-1807.28,0.00020151,2]
[368636572,1751256645376,-548.33,0.00020151,2]
[368636573,1751256645385,-1585.86,0.00020151,2]
[368636574,1751256645394,-460.0,0.00020151,2]
[368636575,1751256645526,-17210.01,0.00020151,2]
[368636576,1751256645536,-460.0,0.00020151,2]
[368636577,1751256645545,-460.0,0.00020151,2]
[368636578,1751256645554,-1055.05,0.00020151,2]
[368636579,1751256645563,-460.0,0.00020151,2]
[368636580,1751256645572,-460.0,0.00020151,2]
[368636581,1751256645581,-460.0,0.00020151,2]
[368636582,1751256645590,-770.74,0.00020151,2]
[368636583,1751256645599,-468.32,0.00020151,2]
[368636584,1751256645608,-1066.11,0.00020151,2]
[368636585,1751256645618,-460.0,0.00020151,2]
[368636586,1751256645627,-460.0,0.00020152,2]
[368636587,1751256645637,-460.0,0.00020152,2]
[368636590,1751256645646,-721.17,0.00020152,2]
[368636592,1751256645656,-978.43,0.00020152,2]
[368636594,1751256645665,-534.26,0.00020152,2]
[368636595,1751256645675,-460.0,0.00020152,2]
[368636596,1751256645684,-460.0,0.00020152,2]
[368636598,1751256645693,-460.0,0.00020152,2]
[368636600,1751256645702,-460.0,0.00020152,2]
[368636601,1751256645712,-678.08,0.00020152,2]
[368636602,1751256645721,-1418.0,0.00020152,2]
[368636603,1751256645730,-460.0,0.00020152,2]
[368636604,1751256645739,-460.0,0.00020152,2]
[368636605,1751256645749,-832.05,0.00020152,2]
[368636606,1751256645758,-3065.61,0.00020152,2]
[368636607,1751256645768,-1187.81,0.00020152,2]
[368636608,1751256645778,-915.3,0.00020152,2]
[368636609,1751256645787,-2530.53,0.00020153,2]
[368636610,1751256645796,-571.54,0.00020153,2]
[368636611,1751256645806,-460.0,0.00020154,2]
[368636612,1751256645815,-205.018784,0.00020187,2]
[368636613,1751256645824,-4000.0,0.00020245,4]
[368636614,1751256645833,-4104.45848769,0.00020279,3]
[368636615,1751256645842,-246.0,0.00020335,2]
[368636616,1751256645851,-246.0,0.00020359,2]
[368636617,1751256645861,-222.72549349,0.00020423,2]
[368636618,1751256645870,-1252.4,0.00020423,2]
[368636619,1751256645879,-460.0,0.00020425,2]
[368636620,1751256645888,-996.8,0.00020425,2]
[368636621,1751256645898,-1026.17,0.00020425,2]
[368636622,1751256645907,-460.0,0.00020425,2]
[368636623,1751256645917,-1226.43,0.00020425,2]
[368636624,1751256645927,-460.0,0.00020425,2]
[368636625,1751256645937,-1807.28,0.00020425,2]
[368636626,1751256645946,-548.33,0.00020425,2]
[368636627,1751256645958,-1585.86,0.00020425,2]
[368636628,1751256645968,-187.37217225,0.00020425,2]
[368636629,1751256645978,-17210.01,0.00020425,2]
[368636630,1751256645987,-460.0,0.00020425,2]
[368636631,1751256645996,-460.0,0.00020425,2]
[368636632,1751256646006,-1055.05,0.00020425,2]
[368636633,1751256646015,-460.0,0.00020425,2]
[368636634,1751256646025,-460.0,0.00020425,2]
[368636635,1751256646034,-460.0,0.00020425,2]
[368636636,1751256646043,-770.74,0.00020425,2]
[368636637,1751256646052,-468.32,0.00020425,2]
[368636638,1751256646062,-1066.11,0.00020425,2]
[368636639,1751256646071,-460.0,0.00020425,2]
[368636641,1751256646081,-460.0,0.00020426,2]
[368636643,1751256646090,-460.0,0.00020426,2]
[368636645,1751256646100,-721.17,0.00020426,2]
[368636647,1751256646109,-978.43,0.00020426,2]
[368636648,1751256646118,-534.26,0.00020426,2]
[368636649,1751256646128,-460.0,0.00020426,2]
[368636650,1751256646138,-460.0,0.00020426,2]
[368636652,1751256646147,-460.0,0.00020426,2]
[368636653,1751256646156,-460.0,0.00020426,2]
[368636654,1751256646165,-678.08,0.00020426,2]
[368636655,1751256646175,-1418.0,0.00020426,2]
[368636657,1751256646184,-460.0,0.00020426,2]
[368636658,1751256646193,-460.0,0.00020426,2]
[368636659,1751256646202,-832.05,0.00020426,2]
[368636661,1751256646211,-3065.61,0.00020426,2]
[368636662,1751256646220,-1187.81,0.00020426,2]
[368636663,1751256646229,-915.3,0.00020426,2]
[368636664,1751256646239,-2530.53,0.00020427,2]
[368636665,1751256646248,-571.54,0.00020427,2]
[368636666,1751256646256,-460.0,0.00020428,2]
[368636667,1751256646265,-4104.45848769,0.00020452,3]
[368636668,1751256646275,-500.0,0.00020547,14]
[368636669,1751256646284,-160.0,0.00020555,3]
[368636670,1751256646293,-213.84631524,0.0002056,3]
[368636671,1751256646302,-4658.36,0.000206,2]
[368636672,1751256646311,-4104.45848769,0.00020624,3]
[368636673,1751256646321,-500.0,0.0002063,2]
[368636674,1751256646330,-151.0,0.00020656,4]
[368636675,1751256646339,-888.419,0.00020672,2]
[368636676,1751256646348,-1252.4,0.00020697,2]
[368636677,1751256646357,-460.0,0.00020699,2]
[368636678,1751256646367,-996.8,0.00020699,2]
[368636679,1751256646376,-1026.17,0.00020699,2]
[368636680,1751256646385,-460.0,0.00020699,2]
[368636681,1751256646395,-1226.43,0.00020699,2]
[368636682,1751256646404,-460.0,0.00020699,2]
[368636683,1751256646414,-1807.28,0.00020699,2]
[368636684,1751256646424,-548.33,0.00020699,2]
[368636685,1751256646434,-1585.86,0.00020699,2]
[368636686,1751256646443,-17210.01,0.00020699,2]
[368636687,1751256646453,-460.0,0.00020699,2]
[368636688,1751256646462,-460.0,0.00020699,2]
[368636689,1751256646472,-1055.05,0.00020699,2]
[368636690,1751256646481,-460.0,0.00020699,2]
[368636691,1751256646491,-479.37670197,0.00020699,2]
[368636692,1751256646500,-460.0,0.00020699,2]
[368636693,1751256646509,-770.74,0.00020699,2]
[368636694,1751256646519,-468.32,0.00020699,2]
[368636695,1751256646528,-1066.11,0.00020699,2]
[368636696,1751256646538,-151.0,0.00020699,2]
[368636697,1751256646547,-460.0,0.00020699,2]
[368636698,1751256646557,-460.0,0.000207,2]
[368636699,1751256646566,-369.25698933,0.000207,2]
[368636700,1751256646578,-721.17,0.000207,2]
[368636701,1751256646587,-978.43,0.000207,2]
[368636702,1751256646596,-534.26,0.000207,2]
[368636703,1751256646605,-460.0,0.000207,2]
[368636704,1751256646616,-460.0,0.000207,2]
[368636705,1751256646625,-460.0,0.000207,2]
[368636706,1751256646635,-151.0,0.000207,3]
[368636707,1751256646644,-254.92210919,0.000207,2]
[368636708,1751256646653,-678.08,0.000207,2]
[368636709,1751256646662,-1418.0,0.000207,2]
[368636710,1751256646671,-460.0,0.000207,2]
[368636711,1751256646681,-460.0,0.000207,2]
[368636712,1751256646691,-832.05,0.000207,2]
[368636713,1751256646700,-3065.61,0.000207,2]
[368636714,1751256646709,-1187.81,0.000207,2]
[368636715,1751256646719,-915.3,0.000207,2]
[368636716,1751256646728,-2530.53,0.00020701,2]
[368636717,1751256646737,-571.54,0.00020701,2]
[368636718,1751256646747,-460.0,0.00020702,2]
[368636719,1751256646756,-215.0738,0.00020717,2]
[368636720,1751256646765,-4104.45848769,0.00020797,4]
[368636721,1751256646774,-166.751527,0.00020824,4]
[368636722,1751256646783,-160.0,0.00020839,4]
[368636723,1751256646793,-151.0,0.00020848,4]
[368636724,1751256646802,-4104.45848769,0.00020969,4]
[368636725,1751256646811,-1252.4,0.00020971,2]
[368636726,1751256646820,-543.43743581,0.00020973,2]
[368636727,1751256646830,-500.6156177,0.00020973,2]
[368636728,1751256646839,-500.0,0.00020973,2]
[368636729,1751256646848,-500.18829966,0.00020973,2]
[368636730,1751256646857,-441.89255118,0.00020973,2]
[368636731,1751256646866,-360.00832558,0.00020973,2]
[368636732,1751256646875,-500.0,0.00020973,2]
[368636733,1751256646885,-500.0,0.00020973,2]
[368636734,1751256646894,-500.0,0.00020973,2]
[368636735,1751256646903,-500.0,0.00020973,2]
[368636736,1751256646913,-500.19386465,0.00020973,2]
[368636737,1751256646922,-500.0,0.00020973,2]
[368636738,1751256646931,-535.06885935,0.00020973,2]
[368636739,1751256646940,-362.63861005,0.00020973,2]
[368636740,1751256646949,-210.22072563,0.00020973,2]
[368636741,1751256646963,-500.0,0.00020973,2]
[368636742,1751256646973,-500.0,0.00020973,2]
[368636743,1751256646982,-500.0,0.00020973,2]
[368636744,1751256646991,-500.0,0.00020973,2]